fUSD/lending_fUSD_20241221
["ID","MTS","AMOUNT","RATE_DAILY","PERIOD"]
[346199854,1734773461668,-685.93,0.00019724,2]
[346199855,1734773461678,-685.93,0.00019724,2]
[346199856,1734773461688,-685.93,0.00019724,2]
[346199857,1734773461699,-685.93,0.00019724,2]
[346199858,1734773461710,-685.93,0.00019724,2]
[346199859,1734773461719,-685.93,0.00019724,2]
[346199860,1734773461728,-685.93,0.00019724,2]
[346199861,1734773461737,-685.93,0.00019724,2]
[346199862,1734773461747,-685.93,0.00019724,2]
[346199863,1734773461758,-685.93,0.00019724,2]
[346199864,1734773461767,-685.93,0.00019724,2]
[346199865,1734773461776,-685.93,0.00019724,2]
[346199866,1734773461786,-500.0,0.00019724,2]
[346199867,1734773461796,-500.0,0.00019724,2]
[346199868,1734773461805,-500.0,0.00019724,2]
[346199869,1734773461814,-500.0,0.00019724,2]
[346199870,1734773461823,-500.0,0.00019724,2]
[346199871,1734773461833,-500.0,0.00019724,2]
[346199872,1734773461842,-500.0,0.00019724,2]
[346199873,1734773461851,-500.0,0.00019724,2]
[346199874,1734773461860,-500.0,0.00019724,2]
[346199875,1734773461869,-500.0,0.00019724,2]
[346199876,1734773461879,-500.0,0.00019725,2]
[346199877,1734773461889,-500.0,0.00019725,2]
[346199878,1734773461898,-500.0,0.00019725,2]
[346199879,1734773461907,-500.0,0.00019725,2]
[346199880,1734773461916,-3485.33,0.00019725,2]
[346199881,1734773461926,-4669.83,0.00019725,2]
[346199882,1734773461935,-4399.07,0.00019725,2]
[346199883,1734773461945,-1087.72,0.00019725,2]
[346199884,1734773461955,-1066.83,0.00019725,2]
[346199885,1734773461965,-667.86,0.00019725,2]
[346199886,1734773461974,-4557.64,0.00019725,2]
[346199887,1734773461984,-765.55,0.00019725,2]
[346199888,1734773461993,-1366.98,0.00019725,2]
[346199889,1734773462002,-1119.96,0.00019725,2]
[346199890,1734773462012,-981.15,0.00019725,2]
[346199891,1734773462022,-1859.69,0.00019725,2]
[346199892,1734773462031,-685.93,0.00019725,2]
[346199893,1734773462040,-685.93,0.00019725,2]
[346199894,1734773462050,-685.93,0.00019725,2]
[346199895,1734773462059,-685.93,0.00019725,2]
[346199896,1734773462068,-686.14,0.00019725,2]
[346199897,1734773462078,-541.28,0.00019725,2]
[346199898,1734773462087,-1109.38,0.00019725,2]
[346199899,1734773462096,-1857.4,0.00019725,2]
[346199900,1734773462105,-2292.97,0.00019725,2]
[346199901,1734773462115,-2095.36,0.00019725,2]
[346199902,1734773462124,-4702.84,0.00019725,2]
[346199903,1734773462133,-2844.23,0.00019725,2]
[346199904,1734773462142,-500.0,0.00019725,2]
[346199905,1734773462151,-2367.12,0.00019725,2]
[346199906,1734773462160,-1460.86,0.00019725,2]
[346199907,1734773462169,-857.89,0.00019725,2]
[346199908,1734773462178,-1646.42485527,0.00019726,2]
[346199909,1734773462187,-505.7358615,0.00019726,2]
[346199910,1734773462197,-500.0,0.00019726,2]
[346199911,1734773462206,-500.0,0.00019726,2]
[346199912,1734773462215,-502.0187348,0.00019726,2]
[346199913,1734773462225,-500.0,0.00019726,2]
[346199914,1734773462241,-256.84821065,0.00019726,2]
[346199915,1734773462251,-507.38680794,0.00019726,2]
[346199916,1734773462262,-500.0,0.00019726,2]
[346199917,1734773462272,-500.0,0.00019726,2]
[346199918,1734773462282,-500.0,0.00019726,2]
[346199919,1734773462291,-500.0,0.00019726,2]
[346199920,1734773462300,-500.0,0.00019726,2]
[346199921,1734773462309,-300.0,0.00019726,2]
[346199922,1734773462320,-505.98765573,0.00019726,2]
[346199923,1734773462329,-500.0,0.00019726,2]
[346199924,1734773462338,-509.29109841,0.00019726,2]
[346199925,1734773462349,-500.0,0.00019726,2]
[346199926,1734773462358,-500.0,0.00019726,2]
[346199927,1734773462368,-500.0,0.00019726,2]
[346199928,1734773462378,-500.0,0.00019726,2]
[346199929,1734773462388,-500.0,0.00019726,2]
[346199930,1734773462398,-500.0,0.00019726,2]
[346199931,1734773462408,-500.0,0.00019726,2]
[346199932,1734773462418,-500.0,0.00019726,2]
[346199933,1734773462427,-500.0,0.00019726,2]
[346199934,1734773462436,-515.37,0.00019726,2]
[346199935,1734773462446,-500.0,0.00019726,2]
[346199936,1734773462456,-500.0,0.00019726,2]
[346199937,1734773462466,-500.0,0.00019726,2]
[346199938,1734773462475,-500.0,0.00019726,2]
[346199939,1734773462485,-500.0,0.00019726,2]
[346199940,1734773462495,-500.0,0.00019726,2]
[346199941,1734773462505,-500.0,0.00019726,2]
[346199942,1734773462515,-500.0,0.00019726,2]
[346199943,1734773462526,-500.0,0.00019726,2]
[346199944,1734773462535,-259.36397847,0.00019726,2]
[346199945,1734773462544,-500.0,0.00019726,2]
[346199946,1734773462554,-500.0,0.00019726,2]
[346199947,1734773462564,-500.0,0.00019726,2]
[346199948,1734773462573,-500.0,0.00019726,2]
[346199949,1734773462583,-508.14497124,0.00019726,2]
[346199950,1734773462592,-500.0,0.00019726,2]
[346199951,1734773462601,-500.0,0.00019726,2]
[346199952,1734773462611,-500.0,0.00019726,2]
[346199953,1734773462620,-500.0,0.00019726,2]
[346199954,1734773462630,-500.0,0.00019726,2]
[346199955,1734773462640,-501.57771536,0.00019726,2]
[346199956,1734773462651,-500.0,0.00019726,2]
[346199957,1734773462661,-500.0,0.00019726,2]
[346199958,1734773462670,-500.0,0.00019726,2]
[346199959,1734773462681,-500.0,0.00019726,2]
[346199960,1734773462690,-500.0,0.00019726,2]
[346199961,1734773462699,-500.0,0.00019726,2]
[346199962,1734773462709,-500.0,0.00019726,2]
[346199963,1734773462719,-500.0,0.00019726,2]
[346199964,1734773462728,-500.0,0.00019726,2]
[346199965,1734773462737,-500.0,0.00019726,2]
[346199966,1734773462747,-500.0,0.00019726,2]
[346199967,1734773462757,-500.0,0.00019726,2]
[346199968,1734773462768,-605.53589562,0.00019726,2]
[346199969,1734773462778,-500.0,0.00019726,2]
[346199970,1734773462788,-507.26515659,0.00019726,2]
[346199971,1734773462798,-500.0,0.00019726,2]
[346199972,1734773462808,-500.0,0.00019726,2]
[346199973,1734773462818,-508.5683987,0.00019726,2]
[346199974,1734773462827,-500.0,0.00019726,2]
[346199975,1734773462838,-500.0,0.00019726,2]
[346199976,1734773462847,-500.0,0.00019726,2]
[346199977,1734773462858,-316.64,0.00019726,2]
[346199978,1734773462868,-500.0,0.00019726,2]
[346199979,1734773462878,-500.0,0.00019726,2]
[346199980,1734773462887,-500.0,0.00019726,2]
[346199981,1734773462899,-500.0,0.00019726,2]
[346199982,1734773462908,-500.0,0.00019726,2]
[346199983,1734773462918,-356.71117095,0.00019726,2]
[346199984,1734773462928,-500.0,0.00019726,2]
[346199985,1734773462938,-500.0,0.00019726,2]
[346199986,1734773462948,-500.0,0.00019726,2]
[346199987,1734773462957,-500.0,0.00019726,2]
[346199988,1734773462967,-500.0,0.00019726,2]
[346199989,1734773462976,-500.0,0.00019726,2]
[346199990,1734773462985,-500.0,0.00019726,2]
[346199991,1734773462996,-611.88740501,0.00019726,2]
[346199992,1734773463006,-500.0,0.00019726,2]
[346199993,1734773463017,-476.8145069,0.00019726,2]
[346199994,1734773463026,-500.0,0.00019726,2]
[346199995,1734773463036,-500.0,0.00019726,2]
[346199996,1734773463046,-525.22,0.00019726,2]
[346199997,1734773463056,-500.0,0.00019726,2]
[346199998,1734773463065,-500.0,0.00019726,2]
[346199999,1734773463075,-500.0,0.00019726,2]
[346200000,1734773463085,-500.0,0.00019726,2]
[346200001,1734773463095,-500.0,0.00019726,2]
[346200002,1734773463105,-500.0,0.00019726,2]
[346200003,1734773463114,-500.0,0.00019726,2]
[346200004,1734773463124,-500.0,0.00019726,2]
[346200005,1734773463133,-500.0,0.00019726,2]
[346200006,1734773463142,-500.0,0.00019726,2]
[346200007,1734773463152,-500.0,0.00019726,2]
[346200008,1734773463162,-500.0,0.00019726,2]
[346200009,1734773463172,-500.0,0.00019726,2]
[346200010,1734773463182,-500.0,0.00019726,2]
[346200011,1734773463192,-500.0,0.00019726,2]
[346200012,1734773463202,-500.0,0.00019726,2]
[346200013,1734773463211,-500.0,0.00019726,2]
[346200014,1734773463222,-555.37,0.00019726,2]
[346200015,1734773463233,-500.0,0.00019726,2]
[346200016,1734773463244,-500.0,0.00019726,2]
[346200017,1734773463253,-500.0,0.00019726,2]
[346200018,1734773463266,-500.0,0.00019726,2]
[346200019,1734773463279,-500.0,0.00019726,2]
[346200020,1734773463289,-500.0,0.00019726,2]
[346200021,1734773463299,-500.0,0.00019726,2]
[346200022,1734773463309,-500.0,0.00019726,2]
[346200023,1734773463320,-500.0,0.00019726,2]
[346200024,1734773463330,-500.0,0.00019726,2]
[346200025,1734773463340,-500.0,0.00019726,2]
[346200026,1734773463350,-500.0,0.00019726,2]
[346200027,1734773463359,-500.0,0.00019726,2]
[346200028,1734773463369,-500.0,0.00019726,2]
[346200029,1734773463378,-500.0,0.00019726,2]
[346200030,1734773463388,-500.0,0.00019726,2]
[346200031,1734773463398,-500.0,0.00019726,2]
[346200032,1734773463408,-500.0,0.00019726,2]
[346200033,1734773463418,-500.0,0.00019726,2]
[346200034,1734773463427,-500.0,0.00019726,2]
[346200035,1734773463438,-500.0,0.00019726,2]
[346200036,1734773463448,-500.0,0.00019726,2]
[346200037,1734773463458,-649.75326632,0.00019726,2]
[346200038,1734773463468,-650.53,0.00019726,2]
[346200039,1734773463478,-1245.48,0.00019726,2]
[346200040,1734773463488,-601.3,0.00019726,2]
[346200041,1734773463497,-500.0,0.00019726,2]
[346200042,1734773463507,-500.0,0.00019726,2]
[346200043,1734773463517,-586.91,0.00019726,2]
[346200044,1734773463527,-584.9,0.00019726,2]
[346200045,1734773463536,-500.0,0.00019726,2]
[346200046,1734773463546,-500.0,0.00019726,2]
[346200047,1734773463556,-601.62,0.00019726,2]
[346200048,1734773463565,-502.0365002,0.00019726,2]
[346200049,1734773463575,-500.0,0.00019726,2]
[346200050,1734773463586,-500.0,0.00019726,2]
[346200051,1734773463595,-500.0,0.00019726,2]
[346200052,1734773463605,-912.12,0.00019726,2]
[346200053,1734773463615,-500.0,0.00019726,2]
[346200054,1734773463625,-532.02,0.00019726,2]
[346200055,1734773463635,-500.0,0.00019726,2]
[346200056,1734773463644,-500.0,0.00019726,2]
[346200057,1734773463654,-509.99764921,0.00019726,2]
[346200058,1734773463664,-500.0,0.00019726,2]
[346200059,1734773463673,-500.0,0.00019726,2]
[346200060,1734773463683,-500.0,0.00019726,2]
[346200061,1734773463693,-500.0,0.00019726,2]
[346200062,1734773463702,-500.0,0.00019726,2]
[346200063,1734773463712,-500.0,0.00019726,2]
[346200064,1734773463722,-503.30558267,0.00019726,2]
[346200065,1734773463732,-500.0,0.00019726,2]
[346200066,1734773463742,-500.0,0.00019726,2]
[346200067,1734773463752,-500.0,0.00019726,2]
[346200068,1734773463763,-618.06,0.00019726,2]
[346200069,1734773463773,-500.0,0.00019726,2]
[346200070,1734773463784,-500.0,0.00019726,2]
[346200071,1734773463794,-500.0,0.00019726,2]
[346200072,1734773463804,-543.65,0.00019726,2]
[346200073,1734773463814,-500.0,0.00019726,2]
[346200074,1734773463824,-500.0,0.00019726,2]
[346200075,1734773463834,-500.0,0.00019726,2]
[346200076,1734773463844,-729.77,0.00019726,2]
[346200077,1734773463854,-500.0,0.00019726,2]
[346200078,1734773463865,-500.0,0.00019726,2]
[346200079,1734773463875,-500.0,0.00019726,2]
[346200080,1734773463885,-500.0,0.00019726,2]
[346200081,1734773463895,-500.0,0.00019726,2]
[346200082,1734773463906,-500.0,0.00019726,2]
[346200083,1734773463915,-834.73,0.00019726,2]
[346200084,1734773463926,-500.0,0.00019726,2]
[346200085,1734773463935,-702.21,0.00019726,2]
[346200086,1734773463945,-500.0,0.00019726,2]
[346200087,1734773463955,-500.0,0.00019726,2]
[346200088,1734773463965,-500.0,0.00019726,2]
[346200089,1734773463974,-500.0,0.00019726,2]
[346200090,1734773463984,-769.61,0.00019726,2]
[346200091,1734773463994,-500.0,0.00019726,2]
[346200092,1734773464003,-500.0,0.00019726,2]
[346200093,1734773464016,-500.0,0.00019726,2]
[346200094,1734773464026,-500.0,0.00019726,2]
[346200095,1734773464036,-633.67151873,0.00019726,2]
[346200096,1734773464046,-500.0,0.00019726,2]
[346200097,1734773464056,-1002.7,0.00019726,2]
[346200098,1734773464067,-507.9,0.00019726,2]
[346200099,1734773464077,-500.0,0.00019726,2]
[346200100,1734773464087,-500.0,0.00019726,2]
[346200101,1734773464097,-905.36,0.00019726,2]
[346200102,1734773464106,-500.0,0.00019726,2]
[346200103,1734773464116,-500.0,0.00019726,2]
[346200104,1734773464127,-500.0,0.00019726,2]
[346200105,1734773464137,-500.0,0.00019726,2]
[346200106,1734773464146,-500.0,0.00019726,2]
[346200107,1734773464156,-500.0,0.00019726,2]
[346200108,1734773464167,-685.89,0.00019726,2]
[346200109,1734773464176,-847.86,0.00019726,2]
[346200110,1734773464186,-500.0,0.00019726,2]
[346200111,1734773464196,-902.93,0.00019726,2]
[346200112,1734773464205,-509.34082704,0.00019726,2]
[346200113,1734773464215,-596.7,0.00019726,2]
[346200114,1734773464224,-500.0,0.00019726,2]
[346200115,1734773464238,-500.0,0.00019726,2]
[346200116,1734773464248,-500.0,0.00019726,2]
[346200117,1734773464261,-500.0,0.00019726,2]
[346200118,1734773464271,-500.0,0.00019726,2]
[346200119,1734773464282,-500.0,0.00019726,2]
[346200120,1734773464291,-500.0,0.00019726,2]
[346200121,1734773464303,-1374.67,0.00019726,2]
[346200122,1734773464313,-506.13,0.00019726,2]
[346200123,1734773464323,-547.02,0.00019726,2]
[346200124,1734773464334,-351.02329202,0.00019726,2]
[346200125,1734773464344,-500.0,0.00019726,2]
[346200126,1734773464354,-500.0,0.00019726,2]
[346200127,1734773464364,-500.0,0.00019726,2]
[346200128,1734773464374,-500.0,0.00019726,2]
[346200129,1734773464383,-1494.46,0.00019726,2]
[346200130,1734773464394,-500.0,0.00019726,2]
[346200131,1734773464404,-500.0,0.00019726,2]
[346200132,1734773464413,-634.46,0.00019726,2]
[346200133,1734773464423,-500.0,0.00019726,2]
[346200134,1734773464433,-813.36,0.00019726,2]
[346200135,1734773464443,-500.0,0.00019726,2]
[346200136,1734773464452,-500.0,0.00019726,2]
[346200137,1734773464462,-1810.25,0.00019726,2]
[346200138,1734773464472,-739.39,0.00019726,2]
[346200139,1734773464481,-500.0,0.00019726,2]
[346200140,1734773464491,-500.0,0.00019726,2]
[346200141,1734773464500,-500.0,0.00019726,2]
[346200142,1734773464510,-500.0,0.00019726,2]
[346200143,1734773464520,-500.0,0.00019726,2]
[346200144,1734773464530,-907.54,0.00019726,2]
[346200145,1734773464540,-589.82,0.00019726,2]
[346200146,1734773464549,-500.0,0.00019726,2]
[346200147,1734773464559,-1931.15,0.00019726,2]
[346200148,1734773464569,-500.0,0.00019726,2]
[346200149,1734773464579,-527.82,0.00019726,2]
[346200150,1734773464590,-555.9118464,0.00019726,2]
[346200151,1734773464599,-500.0,0.00019726,2]
[346200152,1734773464609,-614.04,0.00019726,2]
[346200153,1734773464619,-500.0,0.00019726,2]
[346200154,1734773464629,-500.0,0.00019726,2]
[346200155,1734773464638,-800.36,0.00019726,2]
[346200156,1734773464648,-500.0,0.00019726,2]
[346200157,1734773464658,-591.01,0.00019726,2]
[346200158,1734773464667,-500.0,0.00019726,2]
[346200159,1734773464678,-500.0,0.00019726,2]
[346200160,1734773464687,-500.0,0.00019726,2]
[346200161,1734773464697,-500.0,0.00019726,2]
[346200162,1734773464707,-521.75997186,0.00019726,2]
[346200163,1734773464717,-500.0,0.00019726,2]
[346200164,1734773464727,-500.0,0.00019726,2]
[346200165,1734773464737,-500.0,0.00019726,2]
[346200166,1734773464747,-500.0,0.00019726,2]
[346200167,1734773464757,-500.0,0.00019726,2]
[346200168,1734773464768,-1122.34,0.00019726,2]
[346200169,1734773464778,-814.04,0.00019726,2]
[346200170,1734773464788,-500.0,0.00019726,2]
[346200171,1734773464798,-500.0,0.00019726,2]
[346200172,1734773465061,-552.47,0.00019726,2]
[346200173,1734773465071,-594.91,0.00019726,2]
[346200174,1734773465081,-500.0,0.00019726,2]
[346200175,1734773465091,-1064.96,0.00019726,2]
[346200176,1734773465100,-500.0,0.00019726,2]
[346200177,1734773465110,-500.0,0.00019726,2]
[346200178,1734773465119,-502.96986916,0.00019726,2]
[346200179,1734773465129,-500.0,0.00019726,2]
[346200180,1734773465138,-870.97,0.00019726,2]
[346200181,1734773465147,-500.0,0.00019726,2]
[346200182,1734773465157,-500.0,0.00019726,2]
[346200183,1734773465166,-500.0,0.00019726,2]
[346200184,1734773465175,-932.63,0.00019726,2]
[346200185,1734773465185,-500.0,0.00019726,2]
[346200186,1734773465195,-500.0,0.00019726,2]
[346200187,1734773465204,-192.38,0.00019726,2]
[346200188,1734773465213,-500.0,0.00019726,2]
[346200189,1734773465223,-551.58,0.00019726,2]
[346200190,1734773465235,-500.0,0.00019726,2]
[346200191,1734773465244,-500.0,0.00019726,2]
[346200192,1734773465254,-500.0,0.00019726,2]
[346200193,1734773465264,-621.57,0.00019726,2]
[346200194,1734773465274,-500.0,0.00019726,2]
[346200195,1734773465283,-500.0,0.00019726,2]
[346200196,1734773465293,-500.0,0.00019726,2]
[346200197,1734773465303,-510.13098133,0.00019726,2]
[346200198,1734773465312,-500.0,0.00019726,2]
[346200199,1734773465322,-426.94608676,0.00019726,2]
[346200200,1734773465331,-571.12,0.00019726,2]
[346200201,1734773465341,-608.52,0.00019726,2]
[346200202,1734773465350,-500.0,0.00019726,2]
[346200203,1734773465361,-542.57059848,0.00019726,2]
[346200204,1734773465370,-504.83,0.00019726,2]
[346200205,1734773465380,-500.0,0.00019726,2]
[346200206,1734773465389,-500.0,0.00019726,2]
[346200207,1734773465399,-500.0,0.00019726,2]
[346200208,1734773465408,-500.0,0.00019726,2]
[346200209,1734773465417,-500.0,0.00019726,2]
[346200210,1734773465427,-1533.28,0.00019726,2]
[346200211,1734773465436,-500.0,0.00019726,2]
[346200212,1734773465445,-515.65,0.00019726,2]
[346200213,1734773465455,-500.0,0.00019726,2]
[346200214,1734773465465,-500.0,0.00019726,2]
[346200215,1734773465474,-500.0,0.00019726,2]
[346200216,1734773465483,-500.0,0.00019726,2]
[346200217,1734773465492,-500.0,0.00019726,2]
[346200218,1734773465502,-156.541348,0.00019726,2]
[346200219,1734773465513,-152.561789,0.00019726,2]
[346200220,1734773465522,-1776.17307,0.00019726,2]
[346200221,1734773465531,-445.3608213,0.00019726,2]
[346200222,1734773465541,-500.0,0.00019726,2]
[346200223,1734773465550,-687.23,0.00019726,2]
[346200224,1734773465560,-500.0,0.00019726,2]
[346200225,1734773465569,-668.01,0.00019726,2]
[346200226,1734773465579,-500.0,0.00019726,2]
[346200227,1734773465588,-500.0,0.00019726,2]
[346200228,1734773465598,-500.0,0.00019726,2]
[346200229,1734773465607,-500.0,0.00019726,2]
[346200230,1734773465617,-528.77,0.00019726,2]
[346200231,1734773465627,-784.71,0.00019726,2]
[346200232,1734773465636,-500.0,0.00019726,2]
[346200233,1734773465646,-500.0,0.00019726,2]
[346200234,1734773465655,-500.0,0.00019726,2]
[346200235,1734773465665,-500.0,0.00019726,2]
[346200236,1734773465674,-500.0,0.00019726,2]
[346200237,1734773465684,-1271.57,0.00019726,2]
[346200238,1734773465693,-500.0,0.00019726,2]
[346200239,1734773465703,-500.0,0.00019726,2]
[346200240,1734773465712,-501.30707147,0.00019726,2]
[346200241,1734773465722,-503.47659347,0.00019726,2]
[346200242,1734773465731,-1374.17,0.00019726,2]
[346200243,1734773465740,-1127.2,0.00019726,2]
[346200244,1734773465750,-852.34,0.00019726,2]
[346200245,1734773465760,-2741.171611,0.00019726,2]
[346200246,1734773465770,-504.93,0.00019726,2]
[346200247,1734773465779,-500.0,0.00019726,2]
[346200248,1734773465789,-500.0,0.00019726,2]
[346200249,1734773465799,-500.0,0.00019726,2]
[346200250,1734773465809,-886.06,0.00019726,2]
[346200251,1734773465819,-500.0,0.00019726,2]
[346200252,1734773465829,-736.41,0.00019726,2]
[346200253,1734773465839,-500.0,0.00019726,2]
[346200254,1734773465849,-500.0,0.00019726,2]
[346200255,1734773465858,-552.37,0.00019726,2]
[346200256,1734773465867,-1143.79,0.00019726,2]
[346200257,1734773465877,-500.0,0.00019726,2]
[346200258,1734773465887,-500.0,0.00019726,2]
[346200259,1734773465897,-500.0,0.00019726,2]
[346200260,1734773465907,-1053.96,0.00019726,2]
[346200261,1734773465917,-500.0,0.00019726,2]
[346200262,1734773465927,-500.0,0.00019726,2]
[346200263,1734773465937,-502.90561349,0.00019726,2]
[346200264,1734773465947,-500.0,0.00019726,2]
[346200265,1734773465957,-500.0,0.00019726,2]
[346200266,1734773465968,-500.0,0.00019726,2]
[346200267,1734773465978,-1376.42,0.00019726,2]
[346200268,1734773465988,-500.0,0.00019726,2]
[346200269,1734773465998,-500.0,0.00019726,2]
[346200270,1734773466008,-500.0,0.00019726,2]
[346200271,1734773466019,-500.0,0.00019726,2]
[346200272,1734773466031,-500.0,0.00019726,2]
[346200273,1734773466041,-500.0,0.00019726,2]
[346200274,1734773466051,-599.42,0.00019726,2]
[346200275,1734773466061,-505.21529472,0.00019726,2]
[346200276,1734773466071,-781.07,0.00019726,2]
[346200277,1734773466081,-500.0,0.00019726,2]
[346200278,1734773466090,-500.0,0.00019726,2]
[346200279,1734773466100,-500.0,0.00019726,2]
[346200280,1734773466110,-500.47700011,0.00019726,2]
[346200281,1734773466119,-500.0,0.00019726,2]
[346200282,1734773466129,-748.53,0.00019726,2]
[346200283,1734773466140,-500.0,0.00019726,2]
[346200284,1734773466150,-500.0,0.00019726,2]
[346200285,1734773466160,-500.0,0.00019726,2]
[346200286,1734773466170,-500.0,0.00019726,2]
[346200287,1734773466180,-500.0,0.00019726,2]
[346200288,1734773466190,-500.0,0.00019726,2]
[346200289,1734773466201,-755.41,0.00019726,2]
[346200290,1734773466211,-500.0,0.00019726,2]
[346200291,1734773466221,-500.0,0.00019726,2]
[346200292,1734773466237,-559.95,0.00019726,2]
[346200293,1734773466247,-500.0,0.00019726,2]
[346200294,1734773466257,-500.0,0.00019726,2]
[346200295,1734773466271,-1490.75,0.00019726,2]
[346200296,1734773466281,-500.0,0.00019726,2]
[346200297,1734773466291,-500.0,0.00019726,2]
[346200298,1734773466300,-500.0,0.00019726,2]
[346200299,1734773466311,-500.0,0.00019726,2]
[346200300,1734773466321,-503.22464291,0.00019726,2]
[346200301,1734773466331,-500.0,0.00019726,2]
[346200302,1734773466341,-500.0,0.00019726,2]
[346200303,1734773466351,-687.98,0.00019726,2]
[346200304,1734773466360,-500.0,0.00019726,2]
[346200305,1734773466370,-500.0,0.00019726,2]
[346200306,1734773466380,-500.0,0.00019726,2]
[346200307,1734773466390,-500.0,0.00019726,2]
[346200308,1734773466400,-248.46642043,0.00019726,2]
[346200309,1734773466409,-656.36,0.00019726,2]
[346200310,1734773466419,-500.0,0.00019726,2]
[346200311,1734773466429,-500.0,0.00019726,2]
[346200312,1734773466439,-668.09,0.00019726,2]
[346200313,1734773466449,-500.0,0.00019726,2]
[346200314,1734773466458,-1005.06,0.00019726,2]
[346200315,1734773466468,-500.0,0.00019726,2]
[346200316,1734773466478,-500.0,0.00019726,2]
[346200317,1734773466488,-500.0,0.00019726,2]
[346200318,1734773466498,-853.8,0.00019726,2]
[346200319,1734773466507,-500.0,0.00019726,2]
[346200320,1734773466517,-500.0,0.00019726,2]
[346200321,1734773466527,-806.29,0.00019726,2]
[346200322,1734773466537,-1139.76,0.00019726,2]
[346200323,1734773466546,-543.54,0.00019726,2]
[346200324,1734773466557,-500.0,0.00019726,2]
[346200325,1734773466566,-500.0,0.00019726,2]
[346200326,1734773466575,-602.77,0.00019726,2]
[346200327,1734773466585,-500.0,0.00019726,2]
[346200328,1734773466595,-845.78,0.00019726,2]
[346200329,1734773466604,-1302.53,0.00019726,2]
[346200330,1734773466613,-500.0,0.00019726,2]
[346200331,1734773466622,-500.0,0.00019726,2]
[346200332,1734773466633,-1369.09,0.00019726,2]
[346200333,1734773466643,-500.0,0.00019726,2]
[346200334,1734773466652,-500.0,0.00019726,2]
[346200335,1734773466662,-962.8,0.00019726,2]
[346200336,1734773466672,-809.27,0.00019726,2]
[346200337,1734773466682,-500.0,0.00019726,2]
[346200338,1734773466692,-500.0,0.00019726,2]
[346200339,1734773466701,-500.0,0.00019726,2]
[346200340,1734773466711,-500.0,0.00019726,2]
[346200341,1734773466721,-1375.81,0.00019726,2]
[346200342,1734773466731,-500.0,0.00019726,2]
[346200343,1734773466741,-541.05,0.00019726,2]
[346200344,1734773466752,-890.86,0.00019726,2]
[346200345,1734773466762,-500.0,0.00019726,2]
[346200346,1734773466772,-500.0,0.00019726,2]
[346200347,1734773466781,-500.0,0.00019726,2]
[346200348,1734773466790,-500.0,0.00019726,2]
[346200349,1734773466800,-500.0,0.00019726,2]
[346200350,1734773466810,-500.0,0.00019726,2]
[346200351,1734773466820,-962.15,0.00019726,2]
[346200352,1734773466829,-500.0,0.00019726,2]
[346200353,1734773466839,-500.0,0.00019726,2]